[Event "Early-Titled-Tuesday-Blitz-October-24-2023"]
[Site "Chess.com"]
[Date "2023.10.24"]
[Round "1"]
[White "attack2mateU"]
[Black "Taran2004"]
[Result "1-0"]
[WhiteElo "2721"]
[BlackElo "2397"]
[TimeControl "180+1"]
[EndTime "8:07:02 PDT"]
[Termination "attack2mateU won by resignation"]

1. e4 {[%clk 0:03:00.9]} 1... c6 {[%clk 0:02:57.4]} 2. Nc3 {[%clk 0:02:59.9]}
2... d5 {[%clk 0:02:57.4]} 3. Nf3 {[%clk 0:03:00.6]} 3... dxe4 {[%clk 0:02:57]}
4. Nxe4 {[%clk 0:03:01.5]} 4... Nf6 {[%clk 0:02:57.3]} 5. Qe2 {[%clk 0:03:01.8]}
5... Nxe4 {[%clk 0:02:56.4]} 6. Qxe4 {[%clk 0:03:02.7]} 6... Qd5 {[%clk
0:02:56.5]} 7. Qh4 {[%clk 0:03:02.3]} 7... Bf5 {[%clk 0:02:55.1]} 8. Bc4 {[%clk
0:03:02.6]} 8... Qd6 {[%clk 0:02:30.9]} 9. d3 {[%clk 0:03:00.1]} 9... Nd7 {[%clk
0:02:27.8]} 10. O-O {[%clk 0:02:52.9]} 10... e6 {[%clk 0:02:27.5]} 11. Bf4
{[%clk 0:02:52.5]} 11... Qe7 {[%clk 0:02:24.1]} 12. Qg3 {[%clk 0:02:51.4]} 12...
Nf6 {[%clk 0:02:21.5]} 13. Nd4 {[%clk 0:02:30.7]} 13... Nh5 {[%clk 0:01:54]} 14.
Qf3 {[%clk 0:02:27.9]} 14... Nxf4 {[%clk 0:01:53.5]} 15. Nxf5 {[%clk 0:02:25.8]}
15... Qg5 {[%clk 0:01:49.2]} 16. Ng3 {[%clk 0:02:14.1]} 16... Ng6 {[%clk
0:01:43.3]} 17. Rae1 {[%clk 0:02:07.8]} 17... Ne5 {[%clk 0:01:36.5]} 18. Qe4
{[%clk 0:02:03.5]} 18... Nxc4 {[%clk 0:01:35.9]} 19. Qxc4 {[%clk 0:02:04.4]}
19... Be7 {[%clk 0:01:32.7]} 20. Qb3 {[%clk 0:01:57.9]} 20... O-O-O {[%clk
0:01:26.7]} 21. f4 {[%clk 0:01:48.8]} 21... Qd5 {[%clk 0:01:25.6]} 22. f5 {[%clk
0:01:48.8]} 22... Bc5+ {[%clk 0:01:20.7]} 23. Kh1 {[%clk 0:01:48.8]} 23... exf5
{[%clk 0:01:02.3]} 24. Rxf5 {[%clk 0:01:35.9]} 24... Qxb3 {[%clk 0:00:59.8]} 25.
axb3 {[%clk 0:01:36.8]} 25... Rde8 {[%clk 0:00:47.6]} 26. Ref1 {[%clk
0:01:33.5]} 26... Bd4 {[%clk 0:00:45.8]} 27. c3 {[%clk 0:01:31.2]} 27... Bf6
{[%clk 0:00:45.7]} 28. Ne4 {[%clk 0:01:28]} 28... Re6 {[%clk 0:00:31]} 29. g4
{[%clk 0:01:19.6]} 29... h6 {[%clk 0:00:29.1]} 30. Nxf6 {[%clk 0:01:17.5]} 30...
gxf6 {[%clk 0:00:30]} 31. Rxf6 {[%clk 0:01:18.1]} 31... Re2 {[%clk 0:00:30.4]}
32. R1f2 {[%clk 0:01:15.6]} 32... Rhe8 {[%clk 0:00:30.2]} 33. Kg2 {[%clk
0:01:14.2]} 33... R8e7 {[%clk 0:00:28.7]} 34. Rxh6 {[%clk 0:01:13.4]} 34... R2e3
{[%clk 0:00:26]} 35. Rh3 {[%clk 0:01:12.4]} 35... Rxh3 {[%clk 0:00:25.6]} 36.
Kxh3 {[%clk 0:01:13.3]} 36... Re3+ {[%clk 0:00:25.6]} 37. Kh4 {[%clk 0:01:12.5]}
37... Rxd3 {[%clk 0:00:26.5]} 38. Kg5 {[%clk 0:01:12.7]} 38... Rh3 {[%clk
0:00:24.1]} 39. Kf6 {[%clk 0:01:09.9]} 39... Rh7 {[%clk 0:00:23.7]} 40. Rd2
{[%clk 0:00:43]} 40... Rh4 {[%clk 0:00:20.6]} 41. Rg2 {[%clk 0:00:35.8]} 41...
Rh7 {[%clk 0:00:19.9]} 42. g5 {[%clk 0:00:35.9]} 42... Kd7 {[%clk 0:00:20]} 43.
Re2 {[%clk 0:00:35.9]} 43... Kd6 {[%clk 0:00:19.2]} 44. h4 {[%clk 0:00:35.3]}
44... Rxh4 {[%clk 0:00:18.7]} 45. Kxf7 {[%clk 0:00:35.6]} 45... Rg4 {[%clk
0:00:18.7]} 46. g6 {[%clk 0:00:35.8]} 46... a5 {[%clk 0:00:18.8]} 47. g7 {[%clk
0:00:36]} 47... b5 {[%clk 0:00:17.6]} 48. g8=Q {[%clk 0:00:35.9]} 48... Rxg8
{[%clk 0:00:18.5]} 49. Kxg8 {[%clk 0:00:36.4]} 49... a4 {[%clk 0:00:19.4]} 50.
bxa4 {[%clk 0:00:36.2]} 50... bxa4 {[%clk 0:00:20.3]} 51. Re4 {[%clk 0:00:36.5]}
51... a3 {[%clk 0:00:19.5]} 52. bxa3 {[%clk 0:00:37.4]} 52... Kd5 {[%clk
0:00:19.6]} 53. Rf4 {[%clk 0:00:37.5]} 1-0

[Event "Early-Titled-Tuesday-Blitz-October-24-2023"]
[Site "Chess.com"]
[Date "2023.10.24"]
[Round "1"]
[White "AsaHoffmann"]
[Black "Sokoloco"]
[Result "0-1"]
[WhiteElo "2386"]
[BlackElo "2706"]
[TimeControl "180+1"]
[EndTime "8:07:03 PDT"]
[Termination "Sokoloco won on time"]

1. d4 {[%clk 0:02:56.8]} 1... d6 {[%clk 0:03:00.9]} 2. e4 {[%clk 0:02:52.2]}
2... g6 {[%clk 0:03:01.2]} 3. Be3 {[%clk 0:02:51.7]} 3... Bg7 {[%clk 0:03:01.3]}
4. Qd2 {[%clk 0:02:51.6]} 4... a6 {[%clk 0:03:01.6]} 5. Nc3 {[%clk 0:02:51.1]}
5... b5 {[%clk 0:03:02]} 6. f3 {[%clk 0:02:50.9]} 6... Bb7 {[%clk 0:03:02.3]} 7.
Bd3 {[%clk 0:02:50.3]} 7... Nd7 {[%clk 0:03:02.6]} 8. a3 {[%clk 0:02:49.7]} 8...
Rc8 {[%clk 0:03:03]} 9. Nge2 {[%clk 0:02:49.2]} 9... c5 {[%clk 0:03:03.5]} 10.
dxc5 {[%clk 0:02:46.3]} 10... Nxc5 {[%clk 0:03:04.4]} 11. O-O {[%clk 0:02:42]}
11... Nf6 {[%clk 0:03:04.7]} 12. Rad1 {[%clk 0:02:39.7]} 12... O-O {[%clk
0:03:05.1]} 13. Bh6 {[%clk 0:02:38.8]} 13... Qb6 {[%clk 0:02:54.7]} 14. Kh1
{[%clk 0:02:36.6]} 14... b4 {[%clk 0:02:51.2]} 15. axb4 {[%clk 0:02:33.5]} 15...
Qxb4 {[%clk 0:02:52.1]} 16. Bxg7 {[%clk 0:02:21.4]} 16... Kxg7 {[%clk 0:02:53]}
17. Ng3 {[%clk 0:02:16.3]} 17... Qxb2 {[%clk 0:01:37.8]} 18. Rb1 {[%clk
0:01:57.7]} 18... Qa3 {[%clk 0:01:38.3]} 19. Ra1 {[%clk 0:01:43.8]} 19... Qb4
{[%clk 0:01:38.9]} 20. Rfb1 {[%clk 0:01:42.8]} 20... Qd4 {[%clk 0:01:39.6]} 21.
Nce2 {[%clk 0:01:32.1]} 21... Qe5 {[%clk 0:01:39.9]} 22. f4 {[%clk 0:01:26.1]}
22... Qe6 {[%clk 0:01:22.5]} 23. f5 {[%clk 0:01:22.8]} 23... Qe5 {[%clk
0:01:17.8]} 24. Ng1 {[%clk 0:01:10.2]} 24... Nfxe4 {[%clk 0:01:10.4]} 25. Bxe4
{[%clk 0:01:04.9]} 25... Nxe4 {[%clk 0:01:11.3]} 26. Nxe4 {[%clk 0:01:02.1]}
26... Bxe4 {[%clk 0:01:09.5]} 27. Re1 {[%clk 0:00:44.8]} 27... Rxc2 {[%clk
0:00:57.6]} 28. Qxc2 {[%clk 0:00:40.9]} 28... Bxc2 {[%clk 0:00:58.5]} 29. Rxe5
{[%clk 0:00:40.3]} 29... dxe5 {[%clk 0:00:59.4]} 30. fxg6 {[%clk 0:00:35.9]}
30... hxg6 {[%clk 0:01:00.3]} 31. Nf3 {[%clk 0:00:35.5]} 31... Bd3 {[%clk
0:00:54.4]} 32. Nxe5 {[%clk 0:00:31.7]} 32... Bb5 {[%clk 0:00:55.1]} 33. Nf3
{[%clk 0:00:28.9]} 33... Rd8 {[%clk 0:00:55.2]} 34. h3 {[%clk 0:00:28]} 34...
Be2 {[%clk 0:00:54.6]} 35. Ne5 {[%clk 0:00:27.3]} 35... Rd1+ {[%clk 0:00:52.9]}
36. Rxd1 {[%clk 0:00:26.3]} 36... Bxd1 {[%clk 0:00:53.8]} 37. Nc6 {[%clk
0:00:21]} 37... Kf6 {[%clk 0:00:50.2]} 38. Kg1 {[%clk 0:00:20.8]} 38... Ba4
{[%clk 0:00:50.4]} 39. Na5 {[%clk 0:00:19.7]} 39... Bc2 {[%clk 0:00:48.3]} 40.
Kf2 {[%clk 0:00:18.4]} 40... Be4 {[%clk 0:00:48.9]} 41. g4 {[%clk 0:00:18]}
41... Bd5 {[%clk 0:00:49.4]} 42. h4 {[%clk 0:00:17.9]} 42... Ke5 {[%clk
0:00:47.1]} 43. Ke3 {[%clk 0:00:17]} 43... f5 {[%clk 0:00:47.2]} 44. h5 {[%clk
0:00:16.3]} 44... gxh5 {[%clk 0:00:47.1]} 45. gxh5 {[%clk 0:00:16.4]} 45... Kf6
{[%clk 0:00:46.4]} 46. Kd4 {[%clk 0:00:11.2]} 46... e6 {[%clk 0:00:47]} 0-1

[Event "Early-Titled-Tuesday-Blitz-October-24-2023"]
[Site "Chess.com"]
[Date "2023.10.24"]
[Round "1"]
[White "familijatop71"]
[Black "ExchangeAB"]
[Result "0-1"]
[WhiteElo "2141"]
[BlackElo "2548"]
[TimeControl "180+1"]
[EndTime "8:07:04 PDT"]
[Termination "ExchangeAB won on time"]

1. e4 {[%clk 0:03:00.9]} 1... c6 {[%clk 0:02:59.9]} 2. d4 {[%clk 0:03:00.4]}
2... d5 {[%clk 0:03:00.8]} 3. e5 {[%clk 0:03:00.7]} 3... Bf5 {[%clk 0:03:00.7]}
4. Nf3 {[%clk 0:03:01.3]} 4... e6 {[%clk 0:03:00.4]} 5. Be2 {[%clk 0:03:02]}
5... Nd7 {[%clk 0:03:00.3]} 6. O-O {[%clk 0:03:02.3]} 6... Ne7 {[%clk
0:03:00.6]} 7. b3 {[%clk 0:03:02.3]} 7... h6 {[%clk 0:03:00.7]} 8. c4 {[%clk
0:03:01.4]} 8... g5 {[%clk 0:02:56.5]} 9. Ba3 {[%clk 0:02:57]} 9... Ng6 {[%clk
0:02:52.9]} 10. Bxf8 {[%clk 0:02:56.5]} 10... Kxf8 {[%clk 0:02:53]} 11. Nc3
{[%clk 0:02:56.2]} 11... Kg7 {[%clk 0:02:53.1]} 12. Bd3 {[%clk 0:02:54.8]} 12...
Bxd3 {[%clk 0:02:47.5]} 13. Qxd3 {[%clk 0:02:54.4]} 13... a6 {[%clk 0:02:39.4]}
14. cxd5 {[%clk 0:02:50.8]} 14... cxd5 {[%clk 0:02:38.7]} 15. Ne2 {[%clk
0:02:46.7]} 15... Rc8 {[%clk 0:02:37.5]} 16. Rac1 {[%clk 0:02:45]} 16... Qb6
{[%clk 0:02:37.3]} 17. Ng3 {[%clk 0:02:26.6]} 17... Nf4 {[%clk 0:02:33.3]} 18.
Qd2 {[%clk 0:02:21.3]} 18... Qb5 {[%clk 0:02:03.5]} 19. Rxc8 {[%clk 0:01:59.2]}
19... Rxc8 {[%clk 0:02:02.4]} 20. Rc1 {[%clk 0:01:48.5]} 20... Rxc1+ {[%clk
0:01:49.9]} 21. Qxc1 {[%clk 0:01:48.4]} 21... Qd3 {[%clk 0:01:50.5]} 22. h3
{[%clk 0:01:00.2]} 22... Nxh3+ {[%clk 0:01:46.3]} 23. gxh3 {[%clk 0:00:51.3]}
23... Qxf3 {[%clk 0:01:46.6]} 24. Qc7 {[%clk 0:00:46.8]} 24... Nf8 {[%clk
0:01:46.7]} 25. Qxb7 {[%clk 0:00:43]} 25... Ng6 {[%clk 0:01:46.1]} 26. Qxa6
{[%clk 0:00:31.3]} 26... Qd1+ {[%clk 0:01:22.5]} 27. Qf1 {[%clk 0:00:30.6]}
27... Qxd4 {[%clk 0:01:22.6]} 28. Nh5+ {[%clk 0:00:29.3]} 28... Kh8 {[%clk
0:01:10.1]} 29. Qb5 {[%clk 0:00:18.8]} 29... Qa1+ {[%clk 0:01:02.6]} 30. Kg2
{[%clk 0:00:08.2]} 30... Nh4+ {[%clk 0:00:56.1]} 31. Kh2 {[%clk 0:00:05.8]}
31... Qxe5+ {[%clk 0:00:56]} 32. Kg1 {[%clk 0:00:06.3]} 32... Qe1+ {[%clk
0:00:52.2]} 33. Qf1 {[%clk 0:00:03.8]} 33... Qe4 {[%clk 0:00:37.6]} 34. Ng3
{[%clk 0:00:03.7]} 34... Qf3 {[%clk 0:00:32.3]} 35. Kh2 {[%clk 0:00:02.3]} 35...
f5 {[%clk 0:00:24.6]} 36. b4 {[%clk 0:00:01.7]} 36... f4 {[%clk 0:00:24.9]} 0-1

[Event "Early-Titled-Tuesday-Blitz-October-24-2023"]
[Site "Chess.com"]
[Date "2023.10.24"]
[Round "1"]
[White "Hovik_Hayrapetyan"]
[Black "MidnightFox"]
[Result "0-1"]
[WhiteElo "2814"]
[BlackElo "2481"]
[TimeControl "180+1"]
[EndTime "8:07:06 PDT"]
[Termination "MidnightFox won by resignation"]

1. d4 {[%clk 0:03:00.9]} 1... Nf6 {[%clk 0:02:58.6]} 2. c4 {[%clk 0:03:01]} 2...
e5 {[%clk 0:02:58.7]} 3. dxe5 {[%clk 0:03:00.6]} 3... Ne4 {[%clk 0:02:59.4]} 4.
Nf3 {[%clk 0:02:47.9]} 4... Bb4+ {[%clk 0:02:57.4]} 5. Nbd2 {[%clk 0:02:47.3]}
5... d6 {[%clk 0:02:54.2]} 6. a3 {[%clk 0:02:23]} 6... Bxd2+ {[%clk 0:02:52.3]}
7. Nxd2 {[%clk 0:02:22.5]} 7... Nc5 {[%clk 0:02:51.8]} 8. b4 {[%clk 0:02:17.2]}
8... Ne6 {[%clk 0:02:43.3]} 9. exd6 {[%clk 0:02:16.6]} 9... Qxd6 {[%clk
0:02:42.8]} 10. Bb2 {[%clk 0:02:17.2]} 10... a5 {[%clk 0:02:36.8]} 11. c5 {[%clk
0:02:09.9]} 11... Qe7 {[%clk 0:02:21]} 12. e3 {[%clk 0:02:08]} 12... axb4 {[%clk
0:02:04]} 13. axb4 {[%clk 0:02:08.9]} 13... Rxa1 {[%clk 0:02:03.9]} 14. Qxa1
{[%clk 0:02:09.7]} 14... Nc6 {[%clk 0:01:49.2]} 15. Bc3 {[%clk 0:01:50.9]} 15...
O-O {[%clk 0:01:39.3]} 16. Bc4 {[%clk 0:01:49.3]} 16... f6 {[%clk 0:01:11.7]}
17. O-O {[%clk 0:01:46.2]} 17... Kh8 {[%clk 0:01:12.1]} 18. Nf3 {[%clk
0:01:42.5]} 18... Bd7 {[%clk 0:01:03.4]} 19. Rd1 {[%clk 0:01:40.8]} 19... Re8
{[%clk 0:00:54.3]} 20. h3 {[%clk 0:01:39.7]} 20... Nf8 {[%clk 0:00:52.7]} 21. b5
{[%clk 0:01:24.1]} 21... Ne5 {[%clk 0:00:47.2]} 22. Nxe5 {[%clk 0:01:18.7]}
22... fxe5 {[%clk 0:00:48.1]} 23. Qa7 {[%clk 0:01:16.1]} 23... Bc8 {[%clk
0:00:45.3]} 24. Rd5 {[%clk 0:01:08]} 24... Ng6 {[%clk 0:00:44.6]} 25. Rd2 {[%clk
0:00:48.6]} 25... h6 {[%clk 0:00:38]} 26. Bd5 {[%clk 0:00:41]} 26... Qg5 {[%clk
0:00:33]} 27. Kh2 {[%clk 0:00:37.1]} 27... e4 {[%clk 0:00:27.9]} 28. Qa1 {[%clk
0:00:27.2]} 28... Nh4 {[%clk 0:00:26.6]} 29. Qf1 {[%clk 0:00:21.6]} 29... Bxh3
{[%clk 0:00:17.4]} 30. Kxh3 {[%clk 0:00:20.2]} 30... Qh5 {[%clk 0:00:16]} 31.
Bf7 {[%clk 0:00:18.6]} 31... Ng6+ {[%clk 0:00:13.3]} 0-1

[Event "Early-Titled-Tuesday-Blitz-October-24-2023"]
[Site "Chess.com"]
[Date "2023.10.24"]
[Round "1"]
[White "Byniolus"]
[Black "oggy1984"]
[Result "1-0"]
[WhiteElo "2804"]
[BlackElo "2438"]
[TimeControl "180+1"]
[EndTime "8:07:06 PDT"]
[Termination "Byniolus won on time"]

1. d4 {[%clk 0:03:00.9]} 1... d5 {[%clk 0:02:57.8]} 2. Bf4 {[%clk 0:03:00.7]}
2... Nf6 {[%clk 0:02:56.7]} 3. e3 {[%clk 0:03:01.2]} 3... c5 {[%clk 0:02:56.6]}
4. c3 {[%clk 0:03:01.4]} 4... Nc6 {[%clk 0:02:57]} 5. Nd2 {[%clk 0:03:01.8]}
5... e6 {[%clk 0:02:55.9]} 6. Ngf3 {[%clk 0:03:02.1]} 6... cxd4 {[%clk
0:02:53.4]} 7. cxd4 {[%clk 0:03:02.5]} 7... Bd6 {[%clk 0:02:50.5]} 8. Bg3 {[%clk
0:03:02.1]} 8... Ne4 {[%clk 0:02:35.6]} 9. Nxe4 {[%clk 0:03:01.4]} 9... dxe4
{[%clk 0:02:35.4]} 10. Nd2 {[%clk 0:03:02.1]} 10... f5 {[%clk 0:02:28.4]} 11.
Bc4 {[%clk 0:02:44.6]} 11... O-O {[%clk 0:02:25.7]} 12. Rc1 {[%clk 0:02:44.3]}
12... Na5 {[%clk 0:02:13.3]} 13. Be2 {[%clk 0:02:40.1]} 13... b6 {[%clk
0:02:02.9]} 14. O-O {[%clk 0:02:34.6]} 14... Bb7 {[%clk 0:02:02.1]} 15. a3
{[%clk 0:02:21.7]} 15... Bd5 {[%clk 0:01:55]} 16. b4 {[%clk 0:02:14.8]} 16...
Bxg3 {[%clk 0:01:54.3]} 17. hxg3 {[%clk 0:02:12.8]} 17... Nb7 {[%clk 0:01:55]}
18. Nc4 {[%clk 0:02:01.8]} 18... Nd6 {[%clk 0:01:54.1]} 19. Ne5 {[%clk
0:01:59.6]} 19... Nf7 {[%clk 0:01:25.4]} 20. Nc6 {[%clk 0:01:58.9]} 20... Qg5
{[%clk 0:01:20.3]} 21. b5 {[%clk 0:01:49.2]} 21... Nd6 {[%clk 0:01:15.8]} 22.
Qa4 {[%clk 0:01:37.2]} 22... h5 {[%clk 0:01:11.4]} 23. Qb4 {[%clk 0:01:29.5]}
23... Rad8 {[%clk 0:00:45.5]} 24. Nxd8 {[%clk 0:01:15.6]} 24... Rxd8 {[%clk
0:00:46.4]} 25. Rc6 {[%clk 0:01:03]} 25... Nf7 {[%clk 0:00:35.4]} 26. Rfc1
{[%clk 0:00:57.3]} 26... h4 {[%clk 0:00:32.5]} 27. gxh4 {[%clk 0:00:51.4]} 27...
Qxh4 {[%clk 0:00:32.1]} 28. Rc8 {[%clk 0:00:47.2]} 28... f4 {[%clk 0:00:22.7]}
29. Rxd8+ {[%clk 0:00:36.2]} 29... Nxd8 {[%clk 0:00:22.6]} 30. Qd6 {[%clk
0:00:18.6]} 30... fxe3 {[%clk 0:00:14.6]} 31. fxe3 {[%clk 0:00:19.5]} 31... Nf7
{[%clk 0:00:12.9]} 32. Qf4 {[%clk 0:00:18.1]} 32... Qh5 {[%clk 0:00:04.7]} 33.
Bxh5 {[%clk 0:00:17.6]} 1-0

[Event "Early-Titled-Tuesday-Blitz-October-24-2023"]
[Site "Chess.com"]
[Date "2023.10.24"]
[Round "1"]
[White "InitiatingASC"]
[Black "lefonghua"]
[Result "0-1"]
[WhiteElo "2331"]
[BlackElo "2654"]
[TimeControl "180+1"]
[EndTime "8:07:11 PDT"]
[Termination "lefonghua won by resignation"]

1. Nf3 {[%clk 0:02:58.6]} 1... Nf6 {[%clk 0:03:00.1]} 2. Nc3 {[%clk 0:02:58]}
2... c5 {[%clk 0:02:59.8]} 3. e4 {[%clk 0:02:57.8]} 3... d6 {[%clk 0:03:00.2]}
4. Bb5+ {[%clk 0:02:56.9]} 4... Bd7 {[%clk 0:03:00.2]} 5. O-O {[%clk 0:02:57.1]}
5... Nc6 {[%clk 0:02:59.4]} 6. Re1 {[%clk 0:02:57.2]} 6... g6 {[%clk 0:02:59.5]}
7. d4 {[%clk 0:02:55.6]} 7... cxd4 {[%clk 0:02:59.4]} 8. Nxd4 {[%clk 0:02:54.2]}
8... Bg7 {[%clk 0:02:58.3]} 9. Nxc6 {[%clk 0:02:47]} 9... Bxc6 {[%clk
0:02:56.3]} 10. Bxc6+ {[%clk 0:02:45.9]} 10... bxc6 {[%clk 0:02:57.2]} 11. e5
{[%clk 0:02:46.1]} 11... dxe5 {[%clk 0:02:55]} 12. Rxe5 {[%clk 0:02:43.5]} 12...
Nd5 {[%clk 0:02:37.1]} 13. Rxd5 {[%clk 0:02:13]} 13... cxd5 {[%clk 0:02:36.1]}
14. Nxd5 {[%clk 0:02:13.7]} 14... e6 {[%clk 0:02:30.5]} 15. Ne3 {[%clk
0:02:13.4]} 15... Qxd1+ {[%clk 0:02:27.8]} 16. Nxd1 {[%clk 0:02:14.3]} 16... Ke7
{[%clk 0:02:11]} 17. Kf1 {[%clk 0:02:12.4]} 17... Rab8 {[%clk 0:02:08.5]} 18.
Ke2 {[%clk 0:02:09.5]} 18... Rhd8 {[%clk 0:01:56.9]} 19. a4 {[%clk 0:02:01.6]}
19... f5 {[%clk 0:01:45.3]} 20. Ra3 {[%clk 0:01:57.8]} 20... e5 {[%clk
0:01:37.5]} 21. Rh3 {[%clk 0:01:53.1]} 21... h5 {[%clk 0:01:36.5]} 22. Bg5+
{[%clk 0:01:18.5]} 22... Bf6 {[%clk 0:01:36]} 23. Bxf6+ {[%clk 0:01:18]} 23...
Kxf6 {[%clk 0:01:36.9]} 24. b3 {[%clk 0:00:54.3]} 24... Rbc8 {[%clk 0:01:27]}
25. Rc3 {[%clk 0:00:52.5]} 25... Rxc3 {[%clk 0:01:24.1]} 26. Nxc3 {[%clk
0:00:53.4]} 26... Ke6 {[%clk 0:01:17.8]} 27. Nb5 {[%clk 0:00:48.6]} 27... Rc8
{[%clk 0:01:12.1]} 28. Kd3 {[%clk 0:00:40.7]} 28... a6 {[%clk 0:01:09.3]} 29.
Na3 {[%clk 0:00:40.8]} 29... e4+ {[%clk 0:01:08.8]} 30. Ke3 {[%clk 0:00:39]}
30... g5 {[%clk 0:01:06.3]} 31. g3 {[%clk 0:00:38.7]} 31... Ke5 {[%clk
0:01:02.8]} 32. Nc4+ {[%clk 0:00:37.5]} 32... Rxc4 {[%clk 0:00:57.5]} 33. bxc4
{[%clk 0:00:36.5]} 33... f4+ {[%clk 0:00:58.1]} 34. gxf4+ {[%clk 0:00:35.5]}
34... gxf4+ {[%clk 0:00:59]} 35. Kd2 {[%clk 0:00:29.3]} 35... Kd4 {[%clk
0:00:59]} 36. c5 {[%clk 0:00:29.6]} 36... Kxc5 {[%clk 0:00:55.3]} 37. Kc3 {[%clk
0:00:30.1]} 37... a5 {[%clk 0:00:43.5]} 38. h4 {[%clk 0:00:17.9]} 38... Kd5
{[%clk 0:00:37.3]} 39. Kb3 {[%clk 0:00:13.8]} 39... Kd4 {[%clk 0:00:35]} 40. c4
{[%clk 0:00:14.2]} 40... f3 {[%clk 0:00:29.3]} 41. c5 {[%clk 0:00:12.2]} 41...
Kxc5 {[%clk 0:00:29.4]} 42. Kc3 {[%clk 0:00:12.6]} 42... Kd5 {[%clk 0:00:29.9]}
43. Kc2 {[%clk 0:00:12.5]} 43... Kc4 {[%clk 0:00:29.8]} 44. Kd2 {[%clk
0:00:13.2]} 44... Kd4 {[%clk 0:00:29.1]} 45. Kd1 {[%clk 0:00:10.2]} 45... Kd3
{[%clk 0:00:28.5]} 46. Ke1 {[%clk 0:00:10.3]} 46... Kc2 {[%clk 0:00:28.9]} 47.
Kf1 {[%clk 0:00:09.4]} 47... Kd2 {[%clk 0:00:29.5]} 48. Kg1 {[%clk 0:00:09.4]}
48... Ke2 {[%clk 0:00:30.1]} 0-1

[Event "Early-Titled-Tuesday-Blitz-October-24-2023"]
[Site "Chess.com"]
[Date "2023.10.24"]
[Round "1"]
[White "kikoveiga"]
[Black "GAusal"]
[Result "1-0"]
[WhiteElo "2600"]
[BlackElo "2276"]
[TimeControl "180+1"]
[EndTime "8:07:13 PDT"]
[Termination "kikoveiga won by resignation"]

1. c4 {[%clk 0:02:27.5]} 1... e5 {[%clk 0:02:57.7]} 2. Nc3 {[%clk 0:02:27.4]}
2... Nc6 {[%clk 0:02:55.3]} 3. Nf3 {[%clk 0:02:26.5]} 3... f5 {[%clk 0:02:54.6]}
4. d3 {[%clk 0:02:26.8]} 4... Nf6 {[%clk 0:02:50.6]} 5. g3 {[%clk 0:02:26.6]}
5... Bb4 {[%clk 0:02:45.5]} 6. Bg2 {[%clk 0:02:26.6]} 6... Bxc3+ {[%clk
0:02:42.2]} 7. bxc3 {[%clk 0:02:27.5]} 7... d6 {[%clk 0:02:39.6]} 8. O-O {[%clk
0:02:26.5]} 8... O-O {[%clk 0:02:38.8]} 9. Be3 {[%clk 0:02:00.3]} 9... Qe8
{[%clk 0:02:33.7]} 10. c5 {[%clk 0:01:59.5]} 10... d5 {[%clk 0:02:27.9]} 11. d4
{[%clk 0:01:59.7]} 11... e4 {[%clk 0:02:27.8]} 12. Nd2 {[%clk 0:01:56.6]} 12...
Bd7 {[%clk 0:02:20.8]} 13. Bf4 {[%clk 0:01:56.5]} 13... Rc8 {[%clk 0:02:16.8]}
14. c4 {[%clk 0:01:50.6]} 14... Nxd4 {[%clk 0:02:10.3]} 15. cxd5 {[%clk
0:01:37.5]} 15... Nxd5 {[%clk 0:02:05.8]} 16. e3 {[%clk 0:01:23.9]} 16... Ne6
{[%clk 0:02:03.2]} 17. Be5 {[%clk 0:01:23.1]} 17... c6 {[%clk 0:01:59.6]} 18.
Nc4 {[%clk 0:01:21.3]} 18... Nd8 {[%clk 0:01:54.9]} 19. Bb2 {[%clk 0:01:18.7]}
19... Qf7 {[%clk 0:01:53.4]} 20. Nd6 {[%clk 0:01:18.9]} 20... Qe7 {[%clk
0:01:49.4]} 21. Nxc8 {[%clk 0:01:18.2]} 21... Bxc8 {[%clk 0:01:49.3]} 22. Qd4
{[%clk 0:01:17.5]} 22... Ne6 {[%clk 0:01:47.8]} 23. Qe5 {[%clk 0:01:17.8]} 23...
Qxc5 {[%clk 0:01:44.7]} 24. Rac1 {[%clk 0:01:15]} 24... Qe7 {[%clk 0:01:42.8]}
25. g4 {[%clk 0:01:03.6]} 25... Nec7 {[%clk 0:01:36.5]} 26. gxf5 {[%clk
0:01:01.4]} 26... Qxe5 {[%clk 0:01:34.7]} 27. Bxe5 {[%clk 0:01:02.3]} 27... Bxf5
{[%clk 0:01:33.6]} 28. Rfd1 {[%clk 0:01:00.4]} 28... Nb5 {[%clk 0:01:25.7]} 29.
Rc5 {[%clk 0:00:55.4]} 29... a6 {[%clk 0:01:22.1]} 30. a4 {[%clk 0:00:53.6]}
30... Nbc7 {[%clk 0:01:19.9]} 31. Rc4 {[%clk 0:00:46.8]} 31... Re8 {[%clk
0:01:17.3]} 32. Bg3 {[%clk 0:00:31.9]} 32... Kf7 {[%clk 0:01:16.8]} 33. Rb1
{[%clk 0:00:29.6]} 33... Bc8 {[%clk 0:01:06.1]} 34. Bxe4 {[%clk 0:00:28.1]}
34... Ne6 {[%clk 0:00:53.3]} 35. Bg2 {[%clk 0:00:22]} 35... Re7 {[%clk
0:00:45.2]} 36. e4 {[%clk 0:00:19.7]} 36... Ndc7 {[%clk 0:00:30.9]} 37. f4
{[%clk 0:00:16.8]} 37... Ke8 {[%clk 0:00:23.9]} 38. f5 {[%clk 0:00:16.8]} 38...
Nf8 {[%clk 0:00:22.7]} 39. Bd6 {[%clk 0:00:16.7]} 39... Rd7 {[%clk 0:00:21.9]}
40. e5 {[%clk 0:00:17.2]} 40... Nd5 {[%clk 0:00:18.4]} 41. Bxd5 {[%clk
0:00:17.1]} 41... cxd5 {[%clk 0:00:18]} 42. Rxc8+ {[%clk 0:00:18]} 1-0